[Event "Live Chess"]
[Site "Chess.com"]
[Date "2024.06.01"]
[Round "-"]
[White "akp42"]
[Black "Colm_Buckley"]
[Result "1-0"]
[WhiteElo "2000"]
[BlackElo "1791"]
[TimeControl "300"]
[EndTime "10:06:14 PDT"]
[Termination "akp42 won on time"]

1. e4 {[%clk 0:04:56.9]} 1... e6 {[%clk 0:04:58.2]} 2. d4 {[%clk 0:04:55]} 2...
d5 {[%clk 0:04:57.2]} 3. e5 {[%clk 0:04:51.9]} 3... c5 {[%clk 0:04:55.4]} 4. c3
{[%clk 0:04:51.1]} 4... Nc6 {[%clk 0:04:53.7]} 5. Nf3 {[%clk 0:04:49.9]} 5...
Bd7 {[%clk 0:04:52.5]} 6. Bd3 {[%clk 0:04:48.5]} 6... cxd4 {[%clk 0:04:49.2]} 7.
O-O {[%clk 0:04:47]} 7... dxc3 {[%clk 0:04:47.3]} 8. bxc3 {[%clk 0:04:41.8]}
8... Nge7 {[%clk 0:04:35.8]} 9. c4 {[%clk 0:04:40.6]} 9... dxc4 {[%clk 0:04:28]}
10. Bxc4 {[%clk 0:04:39.2]} 10... Nf5 {[%clk 0:04:15.6]} 11. Nc3 {[%clk
0:04:26.8]} 11... Be7 {[%clk 0:04:09.6]} 12. Ne4 {[%clk 0:04:21.4]} 12... O-O
{[%clk 0:04:04.5]} 13. Bb2 {[%clk 0:04:10.3]} 13... Na5 {[%clk 0:03:52.5]} 14.
Bd3 {[%clk 0:03:58.3]} 14... Bc6 {[%clk 0:03:47.9]} 15. Qe2 {[%clk 0:03:55.7]}
15... b6 {[%clk 0:03:28.2]} 16. Rfd1 {[%clk 0:03:53.4]} 16... Qc7 {[%clk
0:03:25.3]} 17. Rac1 {[%clk 0:03:50.8]} 17... Qb7 {[%clk 0:03:24.4]} 18. Nd6
{[%clk 0:03:27.2]} 18... Bxf3 {[%clk 0:03:11.5]} 19. gxf3 {[%clk 0:03:24.1]}
19... Bxd6 {[%clk 0:03:03.6]} 20. Be4 {[%clk 0:03:12.3]} 20... Qe7 {[%clk
0:02:46]} 21. Bxa8 {[%clk 0:02:43.5]} 21... Rxa8 {[%clk 0:02:31.3]} 22. exd6
{[%clk 0:02:34.6]} 22... Nxd6 {[%clk 0:02:30.1]} 23. Qe5 {[%clk 0:02:16.7]}
23... Nf5 {[%clk 0:02:25.5]} 24. Rc7 {[%clk 0:02:11.9]} 24... Qg5+ {[%clk
0:02:18.1]} 25. Kh1 {[%clk 0:02:10.5]} 25... Qf6 {[%clk 0:01:48.4]} 26. Qxf6
{[%clk 0:02:04.4]} 26... gxf6 {[%clk 0:01:46.9]} 27. Bxf6 {[%clk 0:02:00.9]}
27... h5 {[%clk 0:01:22.1]} 28. Rdd7 {[%clk 0:01:55.6]} 28... Rf8 {[%clk
0:01:13.5]} 29. Rxa7 {[%clk 0:01:49.6]} 29... Nc6 {[%clk 0:01:04.6]} 30. Rab7
{[%clk 0:01:42]} 30... Nb4 {[%clk 0:00:56.1]} 31. a3 {[%clk 0:01:20.4]} 31...
Nd5 {[%clk 0:00:46.6]} 32. Kg2 {[%clk 0:01:16.2]} 32... Nh6 {[%clk 0:00:34.3]}
33. Bg5 {[%clk 0:01:08]} 33... Nf5 {[%clk 0:00:27]} 34. Be3 {[%clk 0:00:59.5]}
34... Ndxe3+ {[%clk 0:00:24.8]} 35. fxe3 {[%clk 0:00:57.9]} 35... Nxe3+ {[%clk
0:00:24.2]} 36. Kf2 {[%clk 0:00:52.8]} 36... Nd5 {[%clk 0:00:22.4]} 37. Kg3
{[%clk 0:00:48.3]} 37... Kg7 {[%clk 0:00:21.2]} 38. Kh4 {[%clk 0:00:46.8]} 38...
Kg6 {[%clk 0:00:20.2]} 39. Ra7 {[%clk 0:00:37.9]} 39... Nf6 {[%clk 0:00:17]} 40.
Rdb7 {[%clk 0:00:33.7]} 40... Nd5 {[%clk 0:00:15.7]} 41. Ra4 {[%clk 0:00:29.4]}
41... Rc8 {[%clk 0:00:12.8]} 42. Raa7 {[%clk 0:00:24.9]} 42... Rc2 {[%clk
0:00:10.8]} 43. Rxf7 {[%clk 0:00:21.6]} 43... Rxh2+ {[%clk 0:00:09.5]} 44. Kg3
{[%clk 0:00:20.2]} 44... Rb2 {[%clk 0:00:06.9]} 45. Rg7+ {[%clk 0:00:17.9]}
45... Kf5 {[%clk 0:00:06]} 46. Raf7+ {[%clk 0:00:15.7]} 46... Ke5 {[%clk
0:00:04.9]} 47. Rg5+ {[%clk 0:00:13.6]} 47... Kd6 {[%clk 0:00:04]} 48. Rxh5
{[%clk 0:00:12.1]} 48... Ra2 {[%clk 0:00:01.7]} 49. Ra7 {[%clk 0:00:09.8]} 1-0

[Event "Live Chess"]
[Site "Chess.com"]
[Date "2024.06.01"]
[Round "-"]
[White "Bob2pen"]
[Black "CarmelJane"]
[Result "0-1"]
[WhiteElo "1818"]
[BlackElo "2115"]
[TimeControl "300"]
[EndTime "10:06:17 PDT"]
[Termination "CarmelJane won by resignation"]

1. e4 {[%clk 0:04:56.5]} 1... g6 {[%clk 0:04:56.9]} 2. d4 {[%clk 0:04:54.2]}
2... Bg7 {[%clk 0:04:56.1]} 3. c4 {[%clk 0:04:53.3]} 3... c5 {[%clk 0:04:55.3]}
4. d5 {[%clk 0:04:52.2]} 4... d6 {[%clk 0:04:53.8]} 5. Nc3 {[%clk 0:04:50.7]}
5... Nf6 {[%clk 0:04:52.4]} 6. f3 {[%clk 0:04:45.2]} 6... O-O {[%clk 0:04:51.8]}
7. Be3 {[%clk 0:04:43.9]} 7... a6 {[%clk 0:04:51.3]} 8. Qd2 {[%clk 0:04:43]}
8... e6 {[%clk 0:04:50.5]} 9. h4 {[%clk 0:04:39.8]} 9... exd5 {[%clk 0:04:49.7]}
10. cxd5 {[%clk 0:04:38]} 10... Nh5 {[%clk 0:04:44]} 11. g4 {[%clk 0:04:31.3]}
11... Ng3 {[%clk 0:04:42.2]} 12. Rh3 {[%clk 0:04:26.5]} 12... Nxf1 {[%clk
0:04:41]} 13. Kxf1 {[%clk 0:04:25.2]} 13... Nd7 {[%clk 0:04:18.2]} 14. h5 {[%clk
0:04:23.6]} 14... Ne5 {[%clk 0:04:15.4]} 15. hxg6 {[%clk 0:04:16.6]} 15... fxg6
{[%clk 0:04:15.3]} 16. Qh2 {[%clk 0:04:14.6]} 16... Nxg4 {[%clk 0:04:11.4]} 17.
Qe2 {[%clk 0:03:59.3]} 17... Nxe3+ {[%clk 0:04:09.8]} 18. Qxe3 {[%clk
0:03:57.8]} 18... Bxh3+ {[%clk 0:04:01.4]} 0-1

[Event "Live Chess"]
[Site "Chess.com"]
[Date "2024.06.01"]
[Round "-"]
[White "powerchs"]
[Black "A3ndrey9"]
[Result "1-0"]
[WhiteElo "1242"]
[BlackElo "1259"]
[TimeControl "300"]
[EndTime "10:06:28 PDT"]
[Termination "powerchs won on time"]

1. e4 {[%clk 0:04:56]} 1... c6 {[%clk 0:04:59.4]} 2. d4 {[%clk 0:04:54]} 2... d5
{[%clk 0:04:58.7]} 3. Nc3 {[%clk 0:04:52.9]} 3... dxe4 {[%clk 0:04:57.7]} 4.
Nxe4 {[%clk 0:04:49.9]} 4... Bf5 {[%clk 0:04:57.2]} 5. Ng3 {[%clk 0:04:48.1]}
5... Bg6 {[%clk 0:04:55]} 6. Nf3 {[%clk 0:04:47.2]} 6... Nf6 {[%clk 0:04:53.6]}
7. Ne5 {[%clk 0:04:42.1]} 7... Be4 {[%clk 0:04:38.7]} 8. Nxe4 {[%clk 0:04:36]}
8... Nxe4 {[%clk 0:04:37.4]} 9. Bc4 {[%clk 0:04:34.7]} 9... e6 {[%clk
0:04:32.2]} 10. O-O {[%clk 0:04:31.5]} 10... Be7 {[%clk 0:04:24.4]} 11. c3
{[%clk 0:04:24.9]} 11... O-O {[%clk 0:04:18.5]} 12. Bd3 {[%clk 0:04:22.7]} 12...
Nf6 {[%clk 0:04:15.2]} 13. h4 {[%clk 0:02:48]} 13... Nbd7 {[%clk 0:04:12.3]} 14.
Nxd7 {[%clk 0:02:43.9]} 14... Qxd7 {[%clk 0:04:10.7]} 15. h5 {[%clk 0:02:42.1]}
15... h6 {[%clk 0:04:05.7]} 16. Bd2 {[%clk 0:02:28.4]} 16... c5 {[%clk 0:04:00]}
17. Qc2 {[%clk 0:02:26]} 17... cxd4 {[%clk 0:03:52.9]} 18. c4 {[%clk 0:02:23.5]}
18... Rac8 {[%clk 0:03:47.3]} 19. b3 {[%clk 0:02:21.6]} 19... b5 {[%clk
0:03:44.2]} 20. Rae1 {[%clk 0:02:19.1]} 20... bxc4 {[%clk 0:03:39.8]} 21. bxc4
{[%clk 0:02:15.1]} 21... Nxh5 {[%clk 0:03:21.3]} 22. Re4 {[%clk 0:02:08.3]}
22... Nf6 {[%clk 0:03:10.1]} 23. Rf4 {[%clk 0:02:03.8]} 23... Nd5 {[%clk
0:03:01.6]} 24. Rf3 {[%clk 0:02:01.1]} 24... Bb4 {[%clk 0:02:46.8]} 25. Bxh6
{[%clk 0:01:55.8]} 25... gxh6 {[%clk 0:02:04.2]} 26. Rg3+ {[%clk 0:01:32.4]}
26... Kh8 {[%clk 0:02:01.8]} 27. Qc1 {[%clk 0:01:28.9]} 27... Ne3 {[%clk
0:00:00.3]} 28. fxe3 {[%clk 0:01:27.1]} 1-0

[Event "Live Chess"]
[Site "Chess.com"]
[Date "2024.06.01"]
[Round "-"]
[White "KyryloPoluliakh"]
[Black "TigerTank70"]
[Result "0-1"]
[WhiteElo "1479"]
[BlackElo "2172"]
[TimeControl "300"]
[EndTime "10:06:35 PDT"]
[Termination "TigerTank70 won by checkmate"]

1. c4 {[%clk 0:04:57.9]} 1... e5 {[%clk 0:04:59.2]} 2. Nc3 {[%clk 0:04:56.6]}
2... Nc6 {[%clk 0:04:57.6]} 3. g3 {[%clk 0:04:55.8]} 3... Nf6 {[%clk 0:04:57]}
4. Bg2 {[%clk 0:04:55]} 4... Bc5 {[%clk 0:04:55.5]} 5. e3 {[%clk 0:04:53.1]}
5... d6 {[%clk 0:04:53.7]} 6. Nge2 {[%clk 0:04:51.9]} 6... a5 {[%clk 0:04:52]}
7. d4 {[%clk 0:04:49.9]} 7... Bb6 {[%clk 0:04:49.1]} 8. O-O {[%clk 0:04:47.5]}
8... Bg4 {[%clk 0:04:48]} 9. h3 {[%clk 0:04:32]} 9... Bf5 {[%clk 0:04:44.1]} 10.
a3 {[%clk 0:04:25.7]} 10... h5 {[%clk 0:04:35.9]} 11. Nd5 {[%clk 0:03:56]} 11...
Qd7 {[%clk 0:04:18.8]} 12. Nxb6 {[%clk 0:03:45.5]} 12... cxb6 {[%clk 0:04:18.7]}
13. Kh2 {[%clk 0:03:42.2]} 13... Ne4 {[%clk 0:03:44.2]} 14. Nc3 {[%clk
0:03:18.2]} 14... Ng5 {[%clk 0:03:37.7]} 15. h4 {[%clk 0:02:55.7]} 15... Nh7
{[%clk 0:03:32]} 16. Nd5 {[%clk 0:02:49.5]} 16... Qd8 {[%clk 0:03:17.8]} 17. f4
{[%clk 0:02:23.6]} 17... Bg4 {[%clk 0:03:02.4]} 18. Qd3 {[%clk 0:02:10.2]} 18...
O-O {[%clk 0:02:55]} 19. Be4 {[%clk 0:01:58.1]} 19... Nf6 {[%clk 0:02:48.8]} 20.
Nxf6+ {[%clk 0:01:54.6]} 20... Qxf6 {[%clk 0:02:44.1]} 21. fxe5 {[%clk
0:01:51.7]} 21... Qe7 {[%clk 0:02:40.3]} 22. exd6 {[%clk 0:01:47.3]} 22... Qxd6
{[%clk 0:02:40.2]} 23. b3 {[%clk 0:01:37.9]} 23... Rad8 {[%clk 0:02:38.6]} 24.
Bb2 {[%clk 0:01:34.6]} 24... Rfe8 {[%clk 0:02:18.9]} 25. Rf2 {[%clk 0:01:16.4]}
25... Qe7 {[%clk 0:02:02.1]} 26. Bd5 {[%clk 0:01:11.4]} 26... Be6 {[%clk
0:01:50.1]} 27. e4 {[%clk 0:01:02.5]} 27... b5 {[%clk 0:01:37.5]} 28. Bxe6
{[%clk 0:00:59.2]} 28... Qxe6 {[%clk 0:01:34.8]} 29. d5 {[%clk 0:00:57.9]} 29...
Qg6 {[%clk 0:01:33]} 30. Qc3 {[%clk 0:00:53]} 30... Ne5 {[%clk 0:01:23.1]} 31.
Kg2 {[%clk 0:00:51.4]} 31... Qxe4+ {[%clk 0:01:20.5]} 32. Kg1 {[%clk 0:00:49.2]}
32... b4 {[%clk 0:01:12.4]} 33. axb4 {[%clk 0:00:45.1]} 33... axb4 {[%clk
0:01:11.2]} 34. Qxb4 {[%clk 0:00:43.4]} 34... Nf3+ {[%clk 0:00:58.2]} 35. Kf1
{[%clk 0:00:39]} 35... Qd3+ {[%clk 0:00:34.7]} 36. Kg2 {[%clk 0:00:36.5]} 36...
Re3 {[%clk 0:00:28.9]} 37. Raf1 {[%clk 0:00:29.7]} 37... Nd4 {[%clk 0:00:16.2]}
38. Bxd4 {[%clk 0:00:22]} 38... Rxg3+ {[%clk 0:00:14.7]} 39. Kh1 {[%clk
0:00:15.8]} 39... Rh3+ {[%clk 0:00:13.5]} 40. Kg1 {[%clk 0:00:15.1]} 40... Qxd4
{[%clk 0:00:08.7]} 41. Qd2 {[%clk 0:00:09.8]} 41... Rg3+ {[%clk 0:00:07.7]} 42.
Kh2 {[%clk 0:00:06.9]} 42... Qxh4# {[%clk 0:00:07.6]} 0-1

[Event "Live Chess"]
[Site "Chess.com"]
[Date "2024.06.01"]
[Round "-"]
[White "missedJariChance"]
[Black "LL220284LL"]
[Result "0-1"]
[WhiteElo "1342"]
[BlackElo "2575"]
[TimeControl "300"]
[EndTime "10:06:52 PDT"]
[Termination "LL220284LL won by resignation"]

1. b3 {[%clk 0:04:56]} 1... c5 {[%clk 0:04:59.9]} 2. Bb2 {[%clk 0:04:53.7]} 2...
d6 {[%clk 0:04:59.5]} 3. e3 {[%clk 0:04:50.6]} 3... Bf5 {[%clk 0:04:58.7]} 4.
Nf3 {[%clk 0:04:48.7]} 4... Nd7 {[%clk 0:04:56.1]} 5. d4 {[%clk 0:04:38]} 5...
Ngf6 {[%clk 0:04:53.7]} 6. Be2 {[%clk 0:04:35]} 6... h6 {[%clk 0:04:52]} 7. Nbd2
{[%clk 0:04:30.7]} 7... e6 {[%clk 0:04:49.8]} 8. O-O {[%clk 0:04:15.8]} 8... Be7
{[%clk 0:04:48.8]} 9. c4 {[%clk 0:04:05.6]} 9... O-O {[%clk 0:04:38.6]} 10. dxc5
{[%clk 0:03:49.5]} 10... dxc5 {[%clk 0:04:36.9]} 11. Rc1 {[%clk 0:03:46.4]}
11... Qc7 {[%clk 0:04:35.8]} 12. Nh4 {[%clk 0:03:34.8]} 12... Bh7 {[%clk
0:04:34.2]} 13. Ndf3 {[%clk 0:03:32.4]} 13... Rad8 {[%clk 0:04:32.2]} 14. Bd3
{[%clk 0:03:27.1]} 14... Ne4 {[%clk 0:04:24.2]} 15. Bxe4 {[%clk 0:03:19.9]}
15... Bxe4 {[%clk 0:04:24.1]} 16. Qe2 {[%clk 0:03:17.2]} 16... Nf6 {[%clk
0:04:17.6]} 17. Ne5 {[%clk 0:03:12.3]} 17... Bd6 {[%clk 0:04:12.1]} 18. Nhf3
{[%clk 0:03:09.1]} 18... Nd7 {[%clk 0:04:08.5]} 19. Nxd7 {[%clk 0:03:00.7]}
19... Rxd7 {[%clk 0:04:08.4]} 20. Rfd1 {[%clk 0:02:59.3]} 20... Bxf3 {[%clk
0:04:04.2]} 21. Qxf3 {[%clk 0:02:56]} 21... Bxh2+ {[%clk 0:04:03.8]} 22. Kh1
{[%clk 0:02:52.3]} 22... Bd6 {[%clk 0:04:03.4]} 23. Qg4 {[%clk 0:02:44.7]} 23...
g6 {[%clk 0:03:46.1]} 24. Qf3 {[%clk 0:02:36.5]} 24... Be7 {[%clk 0:03:25]} 25.
Qh3 {[%clk 0:02:20.7]} 25... Kh7 {[%clk 0:03:12.7]} 26. Qg4 {[%clk 0:02:14]}
26... Rxd1+ {[%clk 0:03:10.3]} 27. Rxd1 {[%clk 0:02:11.3]} 27... Rd8 {[%clk
0:03:09.9]} 28. Qe2 {[%clk 0:01:55]} 28... Bf8 {[%clk 0:03:03.8]} 29. Ba1 {[%clk
0:01:52.5]} 29... Bg7 {[%clk 0:03:01.1]} 30. Bxg7 {[%clk 0:01:45.5]} 30... Kxg7
{[%clk 0:03:01]} 31. Qb2+ {[%clk 0:01:42.9]} 31... Kh7 {[%clk 0:02:58.3]} 32.
Rd2 {[%clk 0:01:38.4]} 32... Kg8 {[%clk 0:02:51.9]} 33. g3 {[%clk 0:01:33.6]}
33... Qc6+ {[%clk 0:02:50.4]} 34. Kg1 {[%clk 0:01:31.3]} 34... Rd7 {[%clk
0:02:48.2]} 35. Rxd7 {[%clk 0:01:25.1]} 35... Qxd7 {[%clk 0:02:46.7]} 36. Qe5
{[%clk 0:01:23.5]} 36... a6 {[%clk 0:02:40.7]} 37. Kg2 {[%clk 0:01:21]} 37... h5
{[%clk 0:02:38.4]} 38. a3 {[%clk 0:01:12.9]} 38... Qc6+ {[%clk 0:02:36.6]} 39.
f3 {[%clk 0:01:10]} 39... b5 {[%clk 0:02:35.6]} 40. Qb8+ {[%clk 0:00:53.8]}
40... Kh7 {[%clk 0:02:33.5]} 41. cxb5 {[%clk 0:00:44.4]} 41... axb5 {[%clk
0:02:32.4]} 42. g4 {[%clk 0:00:43.2]} 42... hxg4 {[%clk 0:02:30.7]} 43. Qh2+
{[%clk 0:00:40.3]} 43... Kg7 {[%clk 0:02:24.3]} 44. Qe5+ {[%clk 0:00:37.7]}
44... f6 {[%clk 0:02:23.7]} 45. Qb8 {[%clk 0:00:32.1]} 45... Qxf3+ {[%clk
0:02:22.5]} 0-1

[Event "Live Chess"]
[Site "Chess.com"]
[Date "2024.06.01"]
[Round "-"]
[White "DarranAS"]
[Black "Tatarinov_Maxim"]
[Result "0-1"]
[WhiteElo "1598"]
[BlackElo "2282"]
[TimeControl "300"]
[EndTime "10:06:52 PDT"]
[Termination "Tatarinov_Maxim won by resignation"]

1. Nf3 {[%clk 0:04:55.8]} 1... Nf6 {[%clk 0:04:58.2]} 2. d4 {[%clk 0:04:53.5]}
2... g6 {[%clk 0:04:56.8]} 3. g3 {[%clk 0:04:47.1]} 3... Bg7 {[%clk 0:04:55.4]}
4. c3 {[%clk 0:04:45.9]} 4... O-O {[%clk 0:04:55]} 5. Bg2 {[%clk 0:04:44.6]}
5... d6 {[%clk 0:04:54.5]} 6. O-O {[%clk 0:04:43.2]} 6... c5 {[%clk 0:04:52.7]}
7. d5 {[%clk 0:04:38.7]} 7... Na6 {[%clk 0:04:50.1]} 8. Re1 {[%clk 0:04:29.7]}
8... Nc7 {[%clk 0:04:48.5]} 9. e4 {[%clk 0:04:27.7]} 9... b5 {[%clk 0:04:47.5]}
10. b3 {[%clk 0:04:22]} 10... b4 {[%clk 0:04:42.3]} 11. Bb2 {[%clk 0:04:20.4]}
11... a5 {[%clk 0:04:41.5]} 12. c4 {[%clk 0:04:18]} 12... a4 {[%clk 0:04:39.4]}
13. Nbd2 {[%clk 0:04:14]} 13... a3 {[%clk 0:04:37.5]} 14. Bxf6 {[%clk 0:04:08]}
14... Bxf6 {[%clk 0:04:35.4]} 15. Rc1 {[%clk 0:04:07.6]} 15... e6 {[%clk
0:04:29.4]} 16. Qc2 {[%clk 0:03:57.8]} 16... exd5 {[%clk 0:04:26.5]} 17. cxd5
{[%clk 0:03:52.1]} 17... Nb5 {[%clk 0:04:24.1]} 18. e5 {[%clk 0:03:39.5]} 18...
dxe5 {[%clk 0:04:18.4]} 19. Nxe5 {[%clk 0:03:37.1]} 19... Nc3 {[%clk 0:04:10.7]}
20. Nc6 {[%clk 0:03:25.2]} 20... Qc7 {[%clk 0:03:59.1]} 21. Re3 {[%clk
0:03:06.7]} 21... Bf5 {[%clk 0:03:53.3]} 22. Be4 {[%clk 0:02:59.8]} 22... Bg5
{[%clk 0:03:31.6]} 23. Rxc3 {[%clk 0:02:55.9]} 23... bxc3 {[%clk 0:03:28.2]} 24.
Bxf5 {[%clk 0:02:54.2]} 24... Bxd2 {[%clk 0:03:21.1]} 25. Be4 {[%clk 0:02:39.9]}
25... Bxc1 {[%clk 0:03:18.2]} 26. Qxc1 {[%clk 0:02:39.8]} 26... Rae8 {[%clk
0:03:14.1]} 27. f3 {[%clk 0:02:35.2]} 27... f5 {[%clk 0:03:06.6]} 28. Bd3 {[%clk
0:02:28.5]} 28... Qg7 {[%clk 0:03:05.5]} 29. Bc4 {[%clk 0:02:23.9]} 29... Kh8
{[%clk 0:03:03.6]} 30. Qc2 {[%clk 0:02:16.8]} 30... Re1+ {[%clk 0:02:54.9]} 31.
Kf2 {[%clk 0:02:13.4]} 31... Rfe8 {[%clk 0:02:54.8]} 32. f4 {[%clk 0:02:06.5]}
32... Rh1 {[%clk 0:02:46.9]} 33. Kg2 {[%clk 0:01:58.7]} 33... Ree1 {[%clk
0:02:45.8]} 34. d6 {[%clk 0:01:40.1]} 34... Reg1+ {[%clk 0:02:42.7]} 35. Kf2
{[%clk 0:01:37.1]} 35... Rxh2+ {[%clk 0:02:40.2]} 36. Kxg1 {[%clk 0:01:34.2]}
36... Rxc2 {[%clk 0:02:40.1]} 37. d7 {[%clk 0:01:32.8]} 37... Qxd7 {[%clk
0:02:37.3]} 38. Ne5 {[%clk 0:01:30]} 38... Qd1+ {[%clk 0:02:35.8]} 39. Bf1
{[%clk 0:01:27]} 39... Rc1 {[%clk 0:02:35.2]} 40. Nf7+ {[%clk 0:01:22]} 40...
Kg7 {[%clk 0:02:32.7]} 0-1

[Event "Live Chess"]
[Site "Chess.com"]
[Date "2024.06.01"]
[Round "-"]
[White "LaupMiths"]
[Black "DJ_Lambton"]
[Result "1-0"]
[WhiteElo "1825"]
[BlackElo "1776"]
[TimeControl "300"]
[EndTime "10:07:09 PDT"]
[Termination "LaupMiths won by resignation"]

1. d4 {[%clk 0:04:50.1]} 1... d5 {[%clk 0:04:59]} 2. Nf3 {[%clk 0:04:47.5]} 2...
c6 {[%clk 0:04:57.9]} 3. g3 {[%clk 0:04:46.3]} 3... Nf6 {[%clk 0:04:57.6]} 4.
Bg2 {[%clk 0:04:45.4]} 4... Bf5 {[%clk 0:04:57.2]} 5. O-O {[%clk 0:04:44.1]}
5... e6 {[%clk 0:04:56.8]} 6. b3 {[%clk 0:04:39]} 6... Nbd7 {[%clk 0:04:54]} 7.
Bb2 {[%clk 0:04:38.5]} 7... Be7 {[%clk 0:04:52.9]} 8. c4 {[%clk 0:04:33.6]} 8...
Rc8 {[%clk 0:04:51.3]} 9. Nc3 {[%clk 0:04:32.4]} 9... O-O {[%clk 0:04:49.3]} 10.
e3 {[%clk 0:04:30.5]} 10... c5 {[%clk 0:04:43.8]} 11. cxd5 {[%clk 0:04:25.6]}
11... cxd4 {[%clk 0:04:43]} 12. Nxd4 {[%clk 0:04:22.8]} 12... Bg6 {[%clk
0:04:12.5]} 13. dxe6 {[%clk 0:04:18.5]} 13... Nc5 {[%clk 0:04:11.1]} 14. exf7+
{[%clk 0:04:16]} 14... Bxf7 {[%clk 0:04:11]} 15. Rc1 {[%clk 0:03:55.6]} 15...
Qb6 {[%clk 0:04:09.1]} 16. Nf5 {[%clk 0:03:39.3]} 16... Bd8 {[%clk 0:03:57.4]}
17. Nd5 {[%clk 0:03:28.8]} 17... Nxd5 {[%clk 0:03:55.9]} 18. Bxd5 {[%clk
0:03:26.7]} 18... Rc7 {[%clk 0:03:51.2]} 19. Bxg7 {[%clk 0:03:02.6]} 19... Re8
{[%clk 0:03:47.3]} 20. Qg4 {[%clk 0:02:57.6]} 20... Qg6 {[%clk 0:03:29]} 21.
Bxf7+ {[%clk 0:02:30]} 21... Kxf7 {[%clk 0:03:21.7]} 22. Qxg6+ {[%clk
0:02:10.9]} 22... hxg6 {[%clk 0:03:20.5]} 23. Nd6+ {[%clk 0:02:07]} 23... Kxg7
{[%clk 0:03:14.6]} 24. Nxe8+ {[%clk 0:02:05.7]} 1-0

[Event "Live Chess"]
[Site "Chess.com"]
[Date "2024.06.01"]
[Round "-"]
[White "raimundklein"]
[Black "viktor_forever1994"]
[Result "1-0"]
[WhiteElo "1582"]
[BlackElo "1402"]
[TimeControl "300"]
[EndTime "10:07:21 PDT"]
[Termination "raimundklein won on time"]

1. e4 {[%clk 0:04:58.1]} 1... e5 {[%clk 0:04:59]} 2. Nf3 {[%clk 0:04:57.1]} 2...
Nc6 {[%clk 0:04:57.2]} 3. Bc4 {[%clk 0:04:56]} 3... Nf6 {[%clk 0:04:57.1]} 4. d3
{[%clk 0:04:53.2]} 4... h6 {[%clk 0:04:55.6]} 5. c3 {[%clk 0:04:40.6]} 5... a6
{[%clk 0:04:54]} 6. O-O {[%clk 0:04:34.1]} 6... Bc5 {[%clk 0:04:50.9]} 7. d4
{[%clk 0:04:27.6]} 7... exd4 {[%clk 0:04:49.8]} 8. cxd4 {[%clk 0:04:26.8]} 8...
Bb6 {[%clk 0:04:48.8]} 9. e5 {[%clk 0:04:25.4]} 9... Ng8 {[%clk 0:04:45.2]} 10.
Nc3 {[%clk 0:04:22.4]} 10... Nge7 {[%clk 0:04:42.7]} 11. d5 {[%clk 0:04:16.4]}
11... Nb8 {[%clk 0:04:20.2]} 12. d6 {[%clk 0:04:14.1]} 12... cxd6 {[%clk
0:04:13.7]} 13. exd6 {[%clk 0:04:14]} 13... Ng6 {[%clk 0:03:50.5]} 14. Re1+
{[%clk 0:04:12.3]} 14... Kf8 {[%clk 0:03:48.6]} 15. Qd5 {[%clk 0:03:59.7]} 15...
Qf6 {[%clk 0:03:42.3]} 16. Ne4 {[%clk 0:03:52.9]} 16... Qe6 {[%clk 0:03:34.9]}
17. Qd3 {[%clk 0:03:50]} 17... Qf5 {[%clk 0:03:26.3]} 18. Qb3 {[%clk 0:03:37.9]}
18... Ba7 {[%clk 0:03:15.7]} 19. Bd5 {[%clk 0:03:31.8]} 19... Nc6 {[%clk
0:02:55.2]} 20. h3 {[%clk 0:03:26.2]} 20... Na5 {[%clk 0:02:20.4]} 21. Qa4
{[%clk 0:03:10]} 21... Qxd5 {[%clk 0:02:11.6]} 22. b3 {[%clk 0:02:45.5]} 22...
b6 {[%clk 0:01:52.1]} 23. Ba3 {[%clk 0:02:22.9]} 23... Qc6 {[%clk 0:01:38.9]}
24. Qd4 {[%clk 0:02:14.9]} 24... b5 {[%clk 0:01:26]} 25. Qd3 {[%clk 0:02:13.4]}
25... Bb7 {[%clk 0:01:16.2]} 26. Rac1 {[%clk 0:02:11.7]} 26... Qd5 {[%clk
0:01:06.7]} 27. Qe2 {[%clk 0:02:03.7]} 27... Nf4 {[%clk 0:00:59.8]} 28. Qf1
{[%clk 0:01:59]} 28... f6 {[%clk 0:00:52.9]} 29. Rcd1 {[%clk 0:01:52.8]} 29...
Qc6 {[%clk 0:00:50.3]} 30. Bb2 {[%clk 0:01:41.3]} 30... Kf7 {[%clk 0:00:47.1]}
31. Nd4 {[%clk 0:01:34.5]} 31... Bxd4 {[%clk 0:00:38.3]} 32. Bxd4 {[%clk
0:01:26.9]} 32... Rhe8 {[%clk 0:00:37.2]} 33. f3 {[%clk 0:01:14.7]} 33... Re6
{[%clk 0:00:28.2]} 34. g3 {[%clk 0:01:01.8]} 34... Ng6 {[%clk 0:00:26.4]} 35.
Qd3 {[%clk 0:00:47.8]} 35... Rae8 {[%clk 0:00:24.5]} 36. Kf2 {[%clk 0:00:44.6]}
36... Ne5 {[%clk 0:00:21.3]} 37. Qb1 {[%clk 0:00:41.8]} 37... Ng6 {[%clk
0:00:16.5]} 38. h4 {[%clk 0:00:40]} 38... Ne5 {[%clk 0:00:14.9]} 39. h5 {[%clk
0:00:38.4]} 39... Nxf3 {[%clk 0:00:10.4]} 40. Kxf3 {[%clk 0:00:35.3]} 40... Rxe4
{[%clk 0:00:08.5]} 41. Kf2 {[%clk 0:00:33.5]} 41... Rg4 {[%clk 0:00:05.7]} 42.
Rxe8 {[%clk 0:00:28.8]} 42... Kxe8 {[%clk 0:00:05.6]} 43. Re1+ {[%clk
0:00:27.2]} 43... Kf7 {[%clk 0:00:04.3]} 44. Qd3 {[%clk 0:00:24.5]} 44... Qg2+
{[%clk 0:00:03.1]} 45. Ke3 {[%clk 0:00:21.6]} 45... Qxg3+ {[%clk 0:00:00.8]} 46.
Kd2 {[%clk 0:00:20.5]} 1-0